fUSD/lending_fUSD_20241101
["ID","MTS","AMOUNT","RATE_DAILY","PERIOD"]
[341128611,1730440232023,-198.602,0.00044841,20]
[341128612,1730440232031,-23900.0,0.0004529,2]
[341128613,1730440232041,-320.82,0.00045356,2]
[341128615,1730440232050,-939.0,0.00045576,30]
[341128616,1730440232059,-1200.0,0.00046,120]
[341128618,1730440232068,-342.97,0.00046027,2]
[341128620,1730440232078,-728.77,0.00046201,2]
[341128622,1730440232087,-274.29683729,0.000463,120]
[341128624,1730440232097,-518.90674834,0.00046591,14]
[341128626,1730440232106,-156.96,0.00046618,2]
[341128628,1730440232115,-1500.0,0.0004662,14]
[341128629,1730440232125,-1500.0,0.0004665,14]
[341128631,1730440232134,-1500.0,0.000467,14]
[341128633,1730440232144,-317.31492396,0.0004674,120]
[341128673,1730440237678,-1242.14824614,0.00042552,2]
[341128674,1730440238076,-13931.4,0.00042552,2]
[341128675,1730440239674,-5023.19999999,0.00042552,2]
[341128676,1730440239793,-8498.77373307,0.00042552,2]
[341128680,1730440240145,-89.62253041,0.00042552,2]
[341128689,1730440240848,150.0,0.00041874,2]
[341128693,1730440242703,-682.32225011,0.00042552,2]
[341128694,1730440242869,-6994.46478053,0.00042552,2]
[341128704,1730440244193,150.0,0.00041392,2]
[341128705,1730440245852,-10809.12287046,0.00042552,2]
[341128706,1730440245862,-1022.0,0.000465,120]
[341128707,1730440245872,-882.68507604,0.0004674,120]
[341128708,1730440245882,-800.0,0.0004674,120]
[341128709,1730440245894,-800.0,0.0004674,120]
[341128710,1730440245905,-1096.98894092,0.0004674,120]
[341128711,1730440246125,-103.01105908,0.0004674,120]
[341128712,1730440246135,-800.0,0.0004674,120]
[341128713,1730440246145,-200.0,0.0004674,120]
[341128714,1730440246155,-1311.7083,0.000468,2]
[341128715,1730440246164,-1522.39828007,0.00046828,3]
[341128716,1730440246426,-93.27995674,0.00046828,3]
[341128717,1730440250600,150.0,0.00041146,2]
[341128718,1730440259636,150.0,0.00041033,2]
[341128719,1730440264675,150.0,0.0004173,2]
[341128720,1730440268929,150.0,0.00041834,2]
[341128721,1730440272908,150.0,0.00041787,2]
[341128722,1730440290759,2225.79,0.00041021,2]
[341128723,1730440300580,150.0,0.00041033,2]
[341128724,1730440303728,162.0,0.00035972,2]
[341128725,1730440303946,162.0,0.00035972,2]
[341128726,1730440304161,162.0,0.00035972,2]
[341128727,1730440304504,162.0,0.00035972,2]
[341128728,1730440304837,162.0,0.00035972,2]
[341128729,1730440305043,162.0,0.00035972,2]
[341128730,1730440305265,162.0,0.00035972,2]
[341128731,1730440305520,162.0,0.00035972,2]
[341128732,1730440305764,162.0,0.00035972,2]
[341128733,1730440306019,162.0,0.00035972,2]
[341128734,1730440306265,162.0,0.00035972,2]
[341128735,1730440306483,162.0,0.00035972,2]
[341128736,1730440306698,162.0,0.00035972,2]
[341128737,1730440306924,162.0,0.00035972,2]
[341128738,1730440307136,162.0,0.00035972,2]
[341128739,1730440307348,162.0,0.00035972,2]
[341128740,1730440307567,162.0,0.00035972,2]
[341128741,1730440307775,162.0,0.00035972,2]
[341128742,1730440308133,150.0,0.00041203,2]
[341128743,1730440308172,162.0,0.00035972,2]
[341128744,1730440308222,162.0,0.00035972,2]
[341128745,1730440308462,162.0,0.00035972,2]
[341128746,1730440308688,162.0,0.00035972,2]
[341128747,1730440308711,150.0,0.00041178,2]
[341128748,1730440308931,162.0,0.00035972,2]
[341128749,1730440309136,162.0,0.00035972,2]
[341128750,1730440309384,162.0,0.00035972,2]
[341128751,1730440309660,162.0,0.00035972,2]
[341128752,1730440309871,162.0,0.00035972,2]
[341128753,1730440310081,162.0,0.00035972,2]
[341128754,1730440310286,162.0,0.00035972,2]
[341128755,1730440310434,150.0,0.00041527,2]
[341128756,1730440310501,162.0,0.00035972,2]
[341128757,1730440310712,162.0,0.00035972,2]
[341128758,1730440310919,162.0,0.00035972,2]
[341128759,1730440311145,162.0,0.00035972,2]
[341128760,1730440311361,162.0,0.00035972,2]
[341128761,1730440311615,162.0,0.00035972,2]
[341128762,1730440311812,162.0,0.00035972,2]
[341128763,1730440312051,162.0,0.00035972,2]
[341128764,1730440312328,162.0,0.00035972,2]
[341128765,1730440312545,162.0,0.00035972,2]
[341128766,1730440312862,162.0,0.00035972,2]
[341128767,1730440313083,162.0,0.00035972,2]
[341128768,1730440313297,162.0,0.00035972,2]
[341128769,1730440313615,162.0,0.00035972,2]
[341128770,1730440313843,162.0,0.00035972,2]
[341128771,1730440314447,162.0,0.00035972,2]
[341128772,1730440314675,162.0,0.00035972,2]
[341128773,1730440314890,162.0,0.00035972,2]
[341128774,1730440315102,162.0,0.00035972,2]
[341128775,1730440315310,162.0,0.00035972,2]
[341128776,1730440315520,162.0,0.00035972,2]
[341128777,1730440315827,162.0,0.00035972,2]
[341128778,1730440316037,162.0,0.00035972,2]
[341128779,1730440316317,162.0,0.00035972,2]
[341128780,1730440316460,162.0,0.00035972,2]
[341128781,1730440316681,162.0,0.00035972,2]
[341128782,1730440316908,162.0,0.00035972,2]
[341128783,1730440316960,150.0,0.00041727,2]
[341128784,1730440317124,162.0,0.00035972,2]
[341128785,1730440317354,162.0,0.00035972,2]
[341128786,1730440317584,162.0,0.00035972,2]
[341128787,1730440317796,162.0,0.00035972,2]
[341128788,1730440318013,162.0,0.00035972,2]
[341128789,1730440318395,162.0,0.00035972,2]
[341128790,1730440318446,162.0,0.00035972,2]
[341128791,1730440319259,162.0,0.00035972,2]
[341128792,1730440319572,162.0,0.00035972,2]
[341128793,1730440319877,162.0,0.00035972,2]
[341128794,1730440320016,162.0,0.00035972,2]
[341128795,1730440320242,162.0,0.00035972,2]
[341128796,1730440320453,162.0,0.00035972,2]
[341128797,1730440320673,162.0,0.00035972,2]
[341128798,1730440320921,162.0,0.00035972,2]
[341128799,1730440321135,162.0,0.00035972,2]
[341128800,1730440321351,162.0,0.00035972,2]
[341128801,1730440321564,162.0,0.00035972,2]
[341128802,1730440321793,162.0,0.00035972,2]
[341128803,1730440322009,162.0,0.00035972,2]
[341128804,1730440322228,162.0,0.00035972,2]
[341128805,1730440322468,162.0,0.00035972,2]
[341128806,1730440322679,162.0,0.00035972,2]
[341128807,1730440324579,150.0,0.0004145,2]
[341128808,1730440328734,150.0,0.00041575,2]
[341128809,1730440332614,153.0,0.00035966,2]
[341128810,1730440332839,153.0,0.00035966,2]
[341128811,1730440334698,150.0,0.0004171,2]
[341128812,1730440390825,156.81,0.00015342,2]
[341128814,1730440897742,157.48,0.00015342,2]
[341128815,1730441059907,156.0,0.00020229,2]
[341128816,1730441111726,2046.0,8.1e-05,2]
[341128817,1730441227148,-289.0,0.000323,2]
[341128818,1730441227169,-190.109,0.00035184,2]
[341128819,1730441227192,-165.87749116,0.00035694,2]
[341128820,1730441227212,-2000.5052,0.00035707,2]
[341128821,1730441227234,-3019.85441525,0.00035781,2]
[341128822,1730441227256,-153.0,0.00035781,2]
[341128823,1730441227280,-153.0,0.00035781,2]
[341128824,1730441227302,-153.0,0.00035781,2]
[341128825,1730441227324,-153.0,0.00035794,2]
[341128826,1730441227346,-153.0,0.00035794,2]
[341128827,1730441227366,-153.0,0.00035794,2]
[341128828,1730441227387,-153.0,0.00035807,2]
[341128829,1730441227408,-153.0,0.00035807,2]
[341128830,1730441227429,-153.0,0.00035807,2]
[341128831,1730441227450,-153.0,0.0003582,2]
[341128832,1730441227470,-153.0,0.0003582,2]
[341128833,1730441227492,-153.0,0.0003582,2]
[341128834,1730441227513,-153.0,0.00035834,2]
[341128835,1730441227534,-153.0,0.00035834,2]
[341128836,1730441227554,-822.43,0.00035959,2]
[341128837,1730441227574,-615.76,0.00039913,2]
[341128838,1730441227594,-181.39,0.00040265,2]
[341128839,1730441227613,-600.0,0.00040478,2]
[341128840,1730441227633,-23900.0,0.0004068,2]
[341128841,1730441227653,-323.36,0.00040685,10]
[341128842,1730441227672,-150.99,0.00040695,2]
[341128843,1730441227691,-65326.29,0.00040695,30]
[341128844,1730441227712,-5008.49,0.00040695,2]
[341128845,1730441227734,-252.86293382,0.000408,2]
[341128846,1730441227754,-171.0,0.000409,120]
[341128847,1730441227772,-200.0,0.00040936,2]
[341128848,1730441227795,-4617.88765675,0.00040936,2]
[341128849,1730441281879,300.0,0.00019725,2]
[341128851,1730441341182,300.0,0.00019725,2]
[341128852,1730441345084,-394.0,0.00021484,2]
[341128853,1730441345105,-185.62875,0.0003534,2]
[341128854,1730441345125,-2309.772948,0.00040631,2]
[341128855,1730441345147,-250.0,0.00040803,2]
[341128856,1730441345167,-176.24,0.00040926,2]
[341128857,1730441345186,-1049.44234325,0.00040936,2]
[341128858,1730441345206,-150.0,0.00041016,2]
[341128859,1730441345227,-250.0,0.00041025,120]
[341128860,1730441345246,-250.0,0.00041051,2]
[341128861,1730441345265,-2384.29,0.00041248,120]
[341128862,1730441345284,-1333.63,0.00041251,2]
[341128863,1730441345303,-219.41,0.00041271,2]
[341128864,1730441345321,-150.0,0.00041449,2]
[341128865,1730441345340,-10934.56,0.0004145,2]
[341128866,1730441345360,-150.0,0.00041461,2]
[341128867,1730441345380,-840.15,0.00041476,2]
[341128868,1730441345400,-453.7,0.00041494,120]
[341128869,1730441345419,-500.0,0.000415,2]
[341128870,1730441345438,-251.9663311,0.000415,10]
[341128871,1730441345458,-2524.67,0.00041509,2]
[341128872,1730441345478,-2225.79,0.00041531,2]
[341128873,1730441345497,-3687.84,0.00041585,2]
[341128874,1730441345517,-150.0,0.00041654,2]
[341128875,1730441345537,-5000.0,0.00041739,2]
[341128876,1730441345556,-181.39,0.00041775,2]
[341128877,1730441345576,-150.0,0.00041792,2]
[341128878,1730441345598,-1852.42,0.00041955,2]
[341128879,1730441345622,-501.14,0.00042,15]
[341128880,1730441345642,-170.091,0.00042,2]
[341128881,1730441345661,-170.091,0.00042,2]
[341128882,1730441345680,-170.091,0.00042,2]
[341128883,1730441345701,-162.19,0.00042152,120]
[341128884,1730441345721,-615.76,0.00042177,2]
[341128885,1730441345741,-190.109,0.00042212,14]
[341128886,1730441350916,905.24865855,0.00040531,2]
[341128887,1730441352469,1177.68,0.00041802,2]
[341128888,1730441355117,905.24865855,0.00040618,2]
[341128889,1730441360098,905.24865855,0.00040704,2]
[341128890,1730441372129,150.0,0.00041835,2]
[341128891,1730441373040,160.0,0.00041,7]
[341128892,1730441385197,150.0,0.00041502,2]
[341128893,1730441388705,150.0,0.00041567,2]
[341128894,1730441390733,150.0,0.00041416,2]
[341128895,1730441398316,160.0,0.00042,14]
[341128896,1730441399838,150.0,0.00041677,2]
[341128897,1730441412456,1177.68,0.00041653,2]
[341128898,1730441418749,157.2,0.00042,14]
[341128899,1730441428790,150.0,0.00041639,2]
[341128900,1730441429084,157.3,0.00015342,2]
[341128903,1730441431841,-1304.3224107,0.00042673,15]
[341128904,1730441431854,-168.5752892,0.00042673,2]
[341128905,1730441431961,-102204.99771063,0.00042747,30]
[341128906,1730441431976,-9705.47541339,0.00042747,30]
[341128907,1730441431990,-17411.26478269,0.00042747,30]
[341128908,1730441432001,-69626.56152113,0.00042747,30]
[341128909,1730441432023,-687.63183088,0.00042747,30]
[341128910,1730441432034,-2330.72529433,0.00042747,30]
[341128911,1730441432053,-513.0,0.00042747,30]
[341128912,1730441432064,-497.77118329,0.00042747,30]
[341128913,1730441432075,-59572.57226366,0.00042747,30]
[341128914,1730441432084,-2330.43288088,0.00042747,30]
[341128915,1730441432094,-162.3428446,0.00042773,10]
[341128916,1730441432103,-181.39,0.00043284,2]
[341128917,1730441432113,-373.85,0.00043318,2]
[341128918,1730441432122,-168.57528919,0.00043537,2]
[341128919,1730441432131,-176.24,0.00043655,2]
[341128920,1730441432141,-405.34,0.00043689,2]
[341128921,1730441432150,-200.0,0.00043747,2]
[341128922,1730441432159,-174.96,0.00043853,69]
[341128923,1730441432171,-400.0,0.00043874,2]
[341128924,1730441432180,-5000.0,0.000442,120]
[341128925,1730441432189,-3445.45,0.000442,120]
[341128926,1730441432198,-500.0,0.00044373,10]
[341128927,1730441432206,-73561.12082618,0.000444,3]
[341128928,1730441432218,-810.95563597,0.000444,3]
[341128929,1730441437318,586.12277679,0.0004102,2]
[341128930,1730441437340,1938.54722321,0.0004102,2]
[341128937,1730441439372,-62.41903448,0.000444,3]
[341128938,1730441439381,-1914.95362486,0.000444,120]
[341128939,1730441439391,-168.57528919,0.000444,2]
[341128940,1730441439402,-220.90917785,0.000444,16]
[341128941,1730441439412,-1304.32241064,0.00044454,15]
[341128942,1730441439423,-158.93,0.00044468,2]
[341128943,1730441439440,-543.49444852,0.00044473,5]
[341128944,1730441439450,-378.48695685,0.0004449,2]
[341128945,1730441439459,-156.9,0.0004449,2]
[341128946,1730441439468,-160.72,0.0004449,30]
[341128947,1730441439477,-45877.36244522,0.000445,45]
[341128948,1730441439491,-251.1,0.000445,45]
[341128949,1730441440007,-564.95,0.00042654,2]
[341128950,1730441440017,-2152.74459299,0.000445,45]
[341128959,1730441442913,-27833.6,0.000445,45]
[341128960,1730441442926,-4922.4875,0.000445,45]
[341128961,1730441443034,-6958.0,0.000445,45]
[341128962,1730441444653,150.0,0.00041725,2]
[341128965,1730441445883,-803.64,0.0004449,30]
[341128966,1730441445895,-2677.66,0.000445,45]
[341128967,1730441445908,-347.95,0.000445,45]
[341128976,1730441449394,150.0,0.00041755,2]
[341128977,1730441450640,150.0,0.00041448,2]
[341128978,1730441456830,150.0,0.00041197,2]
[341128979,1730441461416,278.4435,0.00035526,2]
[341128980,1730441475377,1177.68,0.00041974,2]
[341128981,1730441482701,2073.67,0.000415,3]
[341128982,1730441491361,150.0,0.00041261,2]
[341128983,1730441500114,372.1114,0.00039888,7]
[341128984,1730441500151,550.0,0.00015,2]
[341128985,1730441501603,600.0,0.00017,2]
[341128986,1730441502676,153.0,0.00035865,2]
[341128987,1730441502901,153.0,0.00035865,2]
[341128988,1730441503129,153.0,0.00035865,2]
[341128989,1730441503352,153.0,0.00035865,2]
[341128990,1730441503603,153.0,0.00035865,2]
[341128991,1730441503814,153.0,0.00035865,2]
[341128992,1730441504272,153.0,0.00035865,2]
[341128993,1730441504496,153.0,0.00035865,2]
[341128994,1730441504713,153.0,0.00035865,2]
[341128995,1730441504935,153.0,0.00035865,2]
[341128996,1730441505042,150.0,0.00041389,2]
[341128997,1730441505151,153.0,0.00035865,2]
[341128998,1730441505370,153.0,0.00035865,2]
[341128999,1730441505584,153.0,0.00035865,2]
[341129000,1730441506435,153.0,0.00035865,2]
[341129001,1730441507213,153.0,0.00035865,2]
[341129002,1730441507429,153.0,0.00035865,2]
[341129003,1730441507671,153.0,0.00035865,2]
[341129004,1730441508032,153.0,0.00035865,2]
[341129005,1730441508255,153.0,0.00035865,2]
[341129006,1730441511303,150.0,0.00041264,2]
[341129007,1730441512813,150.0,0.00041497,2]
[341129008,1730441516833,150.0,0.00041722,2]
[341129009,1730441517035,153.0,0.00035862,2]
[341129010,1730441532490,1177.68,0.00041064,2]
[341129011,1730441536495,162.63225,0.00036535,2]
[341129012,1730441581346,300.0,0.00019725,2]
[341129015,1730441920922,158.1,0.00015342,2]
[341129016,1730442228659,150.0,0.00017605,2]
[341129017,1730442241670,300.0,0.00019725,2]
[341129018,1730442253956,265.82,0.00019178,2]
[341129019,1730442270303,150.0,0.00017605,2]
[341129021,1730442311667,150.0,0.00017605,2]
[341129022,1730442354160,2099.78722345,0.000159,2]
[341129023,1730442381557,793.00596517,0.00044842,20]
[341129024,1730442392121,-1624.12162384,0.00021,2]
[341129026,1730442422930,300.0,0.00019725,2]
[341129027,1730442428094,-4873.60028713,0.00021,2]
[341129028,1730442428115,-249.0,0.00021484,2]
[341129029,1730442428136,-500.0,0.00024932,2]
[341129030,1730442428156,-10324.10494794,0.00025,2]
[341129031,1730442430096,-2538.46410832,0.00025,2]
[341129032,1730442435443,158.12,0.00015342,2]
[341129033,1730442481908,300.0,0.00019725,2]
[341129036,1730442499522,2018.21105446,0.0001439,2]
[341129037,1730442500918,200.0,0.0001634,2]
[341129038,1730442506987,32399.94522883,0.0002,2]
[341129039,1730442526328,495.2398391,0.00015,2]
[341129040,1730442548139,-7164.32479171,0.00022,2]
[341129041,1730442548169,-243.90542011,0.00022,2]
[341129042,1730442548203,-904.70996841,0.00022,2]
[341129043,1730442548235,-1441.40465075,0.000225,2]
[341129044,1730442548266,-266.11044652,0.0002301,2]
[341129045,1730442548300,-645.3389413,0.000232,2]
[341129046,1730442548330,-564.94801878,0.0002322,2]
[341129047,1730442548361,-17565.16927556,0.00023922,2]
[341129048,1730442548390,-401.08429354,0.0002421,2]
[341129049,1730442548420,-1229.5495128,0.0002425,2]
[341129050,1730442548453,-336.86484937,0.0002442,2]
[341129051,1730442548488,-5665.9122606,0.00025,2]
[341129052,1730442548522,-397.09700734,0.00025,2]
[341129053,1730442548547,-679.99393091,0.000253,5]
[341129054,1730442548567,-4433.65,0.00026,2]
[341129055,1730442548728,-517.68970848,0.0002604,2]
[341129056,1730442548756,-206.63186436,0.0002736,120]
[341129057,1730442548776,-2800.51985946,0.000275,2]
[341129058,1730442553087,-1475.57313409,0.000275,2]
[341129059,1730442553107,-23493.83706591,0.000299,2]
[341129060,1730442553132,-17764.13623117,0.000299,2]
[341129061,1730442553152,-9379.9754627,0.0003,14]
[341129062,1730442553172,-2429.38609863,0.0003,15]
[341129063,1730442553192,-258.00365017,0.0003,2]
[341129064,1730442553212,-250.0,0.00031687,2]
[341129065,1730442553231,-192.37,0.00032436,2]
[341129066,1730442553252,-15787.19085387,0.000325,2]
[341129067,1730442553272,-500.0,0.00034973,2]
[341129068,1730442553292,-500.0,0.00034999,7]
[341129069,1730442553313,-500.0,0.00034999,7]
[341129070,1730442553334,-500.0,0.00034999,7]
[341129071,1730442553354,-300.0,0.00034999,2]
[341129072,1730442553374,-74938.57345433,0.00035,2]
[341129073,1730442553394,-77558.66236376,0.00035,2]
[341129074,1730442553421,-26501.52358,0.00035,2]
[341129075,1730442559142,-127423.96895727,0.00035,2]
[341129076,1730442559163,-3720.21319991,0.000351,30]
[341129077,1730442559183,-158.12,0.00035616,2]
[341129078,1730442559204,-153.0,0.00035671,2]
[341129079,1730442559225,-153.0,0.00035684,2]
[341129080,1730442559245,-2415.62,0.00035709,2]
[341129081,1730442559266,-1118.38,0.0003669,2]
[341129082,1730442559286,-194.5015,0.00037146,2]
[341129083,1730442559308,-690.56,0.00037541,2]
[341129084,1730442561486,3155.17532714,0.00037541,2]
[341129085,1730442583893,154.76,0.00019484,2]
[341129108,1730442632045,-835.98,0.00038346,10]
[341129109,1730442632055,-696.65,0.00038346,10]
[341129110,1730442632066,-76701.9465183,0.00038356,2]
[341129111,1730442632080,-4940.35435108,0.00038356,2]
[341129112,1730442632090,-614.72573488,0.00038356,2]
[341129113,1730442632142,-2885.63850166,0.00038356,2]
[341129114,1730442632261,-1802.1000002,0.00038356,2]
[341129115,1730442632275,-409511.01489388,0.00038356,2]
[341129116,1730442632284,-369.7740686,0.0003909,2]
[341129117,1730442632294,-250.0,0.0003919,2]
[341129118,1730442632303,-250.0,0.00039485,2]
[341129119,1730442632313,-690.56,0.00039805,2]
[341129120,1730442632322,-176.24,0.00039969,2]
[341129121,1730442632331,-34944.11726267,0.0004,2]
[341129122,1730442632340,-32442.90929906,0.0004,4]
[341129124,1730442632349,-151.0,0.0004,14]
[341129126,1730442632358,-151.0,0.0004,14]
[341129128,1730442632369,-200.0,0.0004032,2]
[341129130,1730442632378,-363.63,0.00040526,2]
[341129132,1730442632388,-480.0,0.00040563,2]
[341129133,1730442632398,-8167.0,0.00040726,2]
[341129134,1730442632407,-23900.0,0.00040756,2]
[341129135,1730442632417,-356.15871539,0.00040779,2]
[341129137,1730442632427,-156.9,0.0004078,2]
[341129138,1730442632436,-7858.29065468,0.0004079,2]
[341129139,1730442632445,-200.0,0.00040819,2]
[341129140,1730442632454,-1108.25511185,0.00041,120]
[341129142,1730442632464,-150.0,0.00041009,2]
[341129144,1730442632474,-165.7,0.00041015,2]
[341129146,1730442632484,-1177.68,0.00041038,2]
[341129148,1730442632493,-153.86,0.00041096,2]
[341129150,1730442632503,-363.63,0.00041177,2]
[341129151,1730442632515,-150.0,0.00041252,2]
[341129152,1730442632526,-150.0,0.00041328,2]
[341129153,1730442632537,-890.31,0.00041438,2]
[341129154,1730442632548,-150.0,0.00041608,2]
[341129155,1730442632557,-150.0,0.00041635,2]
[341129156,1730442632567,-206.30042392,0.000417,7]
[341129157,1730442632576,-150.41,0.00041723,2]
[341129158,1730442632585,-363.63,0.00041828,2]
[341129159,1730442632595,-1195.43972559,0.00041873,15]
[341129160,1730442632603,-341.97115894,0.00041873,2]
[341129161,1730442632613,-25225.61176312,0.0004188,2]
[341129162,1730442632622,-151.0,0.0004188,14]
[341129163,1730442632631,-400.0,0.000419,15]
[341129164,1730442632641,-7500.0,0.00041972,120]
[341129165,1730442632650,-392.35673037,0.00041973,10]
[341129166,1730442632659,-160.00703202,0.00041973,10]
[341129167,1730442632668,-151.0,0.00041973,14]
[341129168,1730442632677,-38993.97679661,0.00042,2]
[341129169,1730442632687,-124692.87008029,0.00042,30]
[341129176,1730442638201,-580.54,0.00038346,10]
[341129177,1730442638212,-428.91504637,0.00038355,15]
[341129178,1730442638223,-14138.68502053,0.00042,30]
[341129210,1730442643161,-227.26,0.00041902,2]
[341129212,1730442643171,-7845.45248346,0.00042,30]
[341129216,1730442643201,-180.45795815,0.00042,30]
[341129261,1730442643586,-311.7686698,0.00042,30]
[341129266,1730442643623,-21901.80023568,0.00042,30]
[341129268,1730442643634,-151.0,0.00042,14]
[341129270,1730442643643,-151.0,0.00042,14]
[341129272,1730442643653,-151.0,0.00042,14]
[341129274,1730442643663,-690.56,0.00042069,2]
[341129276,1730442643673,-166.45,0.00042373,2]
[341129283,1730442643802,-193.78,0.00042376,2]
[341129285,1730442643955,-161.23,0.00042444,120]
[341129287,1730442644071,-278.4435,0.00042481,14]
[341129289,1730442644174,-227.26,0.00042576,2]
[341129291,1730442644267,-520.0,0.00042673,2]
[341129293,1730442644381,-6282.37936095,0.000428,60]
[341129295,1730442644487,-186.868,0.00043087,66]
[341129297,1730442644586,-174.2574901,0.00043087,66]
[341129299,1730442644687,-341.97115891,0.00043104,2]
[341129302,1730442644727,-227.26,0.00043249,2]
[341129304,1730442644738,-1195.43972559,0.00043654,15]
[341129306,1730442644748,-166.98,0.00043672,2]
[341129308,1730442644758,-194.5015,0.00043757,14]
[341129310,1730442644768,-222.00781498,0.00043842,16]
[341129312,1730442644778,-900.0,0.000439,16]
[341129314,1730442644789,-227.26,0.00043922,2]
[341129316,1730442644799,-488.91203298,0.00043973,10]
[341129318,1730442644809,-153.20495348,0.00044,15]
[341129320,1730442644819,-150.0,0.00044,2]
[341129322,1730442644829,-116863.15416625,0.00044,2]
[341129339,1730442646111,-151.0,0.00042,14]
[341129340,1730442646122,-622.90142209,0.00044,2]
[341129341,1730442646923,-603075.2942627,0.00044,2]
[341129342,1730442646936,-72104.65014896,0.00044,2]
[341129343,1730442646947,-686.68333528,0.00044,14]
[341129344,1730442646956,-151.0,0.00044,14]
[341129345,1730442646965,-151.0,0.00044,14]
[341129346,1730442646976,-175.233929,0.00044,14]
[341129347,1730442646985,-175.233929,0.00044,14]
[341129348,1730442646994,-151.0,0.00044,14]
[341129349,1730442647003,-151.0,0.00044,14]
[341129350,1730442647012,-151.0,0.00044,14]
[341129351,1730442647022,-151.0,0.00044,14]
[341129352,1730442647030,-151.0,0.00044,14]
[341129353,1730442647039,-155.162442,0.00044,3]
[341129354,1730442647049,-151.532512,0.00044,14]
[341129355,1730442647058,-154.948496,0.00044,14]
[341129356,1730442647067,-1590.550638,0.00044,14]
[341129357,1730442647076,-1590.550638,0.00044,14]
[341129358,1730442647086,-317.128037,0.00044,14]
[341129359,1730442647095,-151.0,0.00044,14]
[341129360,1730442647104,-151.0,0.00044,14]
[341129361,1730442647113,-151.0,0.00044,14]
[341129362,1730442647122,-583.03004,0.00044,14]
[341129363,1730442647138,-151.0,0.00044,14]
[341129364,1730442647147,-151.0,0.00044,14]
[341129365,1730442647156,-583.03004,0.00044,14]
[341129366,1730442647232,-151.0,0.00044,14]
[341129367,1730442647241,-151.0,0.00044,7]
[341129368,1730442647251,-283.704489,0.00044,14]
[341129369,1730442647260,-283.704489,0.00044,14]
[341129370,1730442647269,-219.466532,0.00044,14]
[341129371,1730442647278,-151.0,0.00044,14]
[341129372,1730442647288,-151.0,0.00044,14]
[341129373,1730442647297,-151.0,0.00044,14]
[341129374,1730442647306,-171.787773,0.00044,14]
[341129375,1730442647315,-420.35743639,0.00044063,2]
[341129376,1730442647325,-420.35743639,0.00044299,2]
[341129377,1730442647334,-2293.68694648,0.000443,14]
[341129378,1730442647343,-690.56,0.00044333,2]
[341129379,1730442647352,-341.97115891,0.00044334,2]
[341129380,1730442647361,-172.45195226,0.000444,15]
[341129381,1730442647371,-1861.96500335,0.000444,2]
[341129382,1730442647382,-258.7512984,0.000444,2]
[341129383,1730442647391,-605.71898969,0.000444,2]
[341129384,1730442647401,-413.45544062,0.000444,2]